bitfinex-derivatives/quotes_SOLF0:USTF0_20260217
["timestamp","ask_amount","ask_price","bid_price","bid_amount"]
[1771290991016,6.32679025,86.883,86.835,6.40066752]
[1771290991017,6.32679025,86.879,86.835,80.72066752]
[1771290991217,6.32679025,86.879,86.836,6.40066752]
[1771290992421,10.3651,86.877,86.836,6.40066752]
[1771290994520,6.32679025,86.879,86.837,74.48]
[1771290994725,6.32679025,86.879,86.838,6.40066752]
[1771290995019,6.32679025,86.879,86.84,9.09756672]
[1771290995225,6.32679025,86.879,86.841,6.40066752]
[1771290995724,6.32679025,86.878,86.841,6.40066752]
[1771290996315,6.32679025,86.876,86.841,6.40066752]
[1771290997223,6.32679025,86.876,86.835,74.56]
[1771290997824,6.32679025,86.872,86.835,74.56]
[1771290998830,16.69289025,86.869,86.835,74.56]
[1771290999424,6.32679025,86.868,86.835,74.56]
[1771291000023,6.32679025,86.868,86.836,6.40066752]
[1771291000219,6.32679025,86.868,86.835,74.56]
[1771291001117,2.6968992,86.89,86.83,2.6968992]
[1771291001118,6.32679025,86.866,86.83,2.6968992]
[1771291001322,6.32679025,86.866,86.824,78.92066752]
[1771291001726,6.32679025,86.866,86.825,6.40066752]
[1771291002221,6.32679025,86.862,86.825,6.40066752]
[1771291002526,6.32679025,86.859,86.802,6.40066752]
[1771291003825,16.69629025,86.841,86.802,6.40066752]
[1771291004724,5.89206062,86.829,86.767,5.99722691]
[1771291004929,20.7327,86.867,86.767,5.99722691]
[1771291004930,5.89206062,86.819,86.767,5.99722691]
[1771291005425,10.3739,86.804,86.767,5.99722691]
[1771291005630,2.6968992,86.82,86.767,5.99722691]
[1771291005631,5.89206062,86.803,86.767,5.99722691]
[1771291006426,8.58895982,86.82,86.767,5.99722691]
[1771291006631,5.89206062,86.82,86.771,5.99722691]
[1771291007932,10.3721,86.819,86.771,5.99722691]
[1771291008427,10.3731,86.811,86.771,5.99722691]
[1771291008628,5.89206062,86.81,86.771,5.99722691]
[1771291009734,10.3735,86.808,86.771,5.99722691]
[1771291010136,6.41172285,86.807,86.76,75.2368992]
[1771291010435,166.23709521,86.864,86.76,72.54]
[1771291010436,6.41172285,86.8,86.76,72.54]
[1771291013528,6.41172285,86.83,86.781,6.08770988]
[1771291014131,10.3728,86.813,86.781,6.08770988]
[1771291014532,6.41172285,86.81,86.77,6.08770988]
[1771291017240,6.41172285,86.802,86.757,6.08770988]
[1771291017735,6.41172285,86.802,86.76,2.6968992]
[1771291018445,10.3733,86.809,86.771,6.08770988]
[1771291019041,6.41172285,86.815,86.78,2.6968992]
[1771291019844,6.41172285,86.808,86.765,6.08770988]
[1771291021733,6.41172285,86.801,86.765,6.08770988]
[1771291022143,6.41172285,86.801,86.753,6.08770988]
[1771291022345,6.41172285,86.798,86.753,6.08770988]
[1771291023336,10.3739,86.804,86.76,2.6968992]
[1771291023537,10.3739,86.804,86.77,2.6968992]
[1771291024445,72.56,86.826,86.766,6.08770988]
[1771291024446,10.3743,86.8,86.766,6.08770988]
[1771291025435,10.3734,86.808,86.77,2.6968992]
[1771291025642,6.41172285,86.815,86.771,6.08770988]
[1771291025950,6.41172285,86.849,86.8,2.6968992]
[1771291026247,6.41172285,86.849,86.726,14.05096618]
[1771291026248,10.3693,86.842,86.81,2.6968992]
[1771291026947,10.3693,86.842,86.81,8.78460908]
[1771291028748,10.3698,86.839,86.8,2.6968992]
[1771291029043,6.41172285,86.838,86.783,6.08770988]
[1771291029640,6.41172285,86.82,86.78,2.6968992]
[1771291029844,6.41172285,86.82,86.77,8.78460908]
[1771291030645,10.373,86.811,86.77,8.78460908]
[1771291030850,10.373,86.811,86.771,6.08770988]
[1771291032849,10.373,86.811,86.78,2.6968992]
[1771291034246,10.3747,86.797,86.76,2.6968992]
[1771291034452,6.31137713,86.809,86.75,2.6968992]
[1771291035652,10.3756,86.79,86.75,2.6968992]
[1771291036955,6.31137713,86.795,86.751,6.31969668]
[1771291037159,10.3745,86.799,86.761,6.31969668]
[1771291040857,10.3754,86.792,86.75,2.6968992]
[1771291041059,6.31137713,86.791,86.748,6.31969668]
[1771291041359,6.31137713,86.791,86.74,2.6968992]
[1771291041951,6.31137713,86.791,86.735,6.31969668]
[1771291042656,10.3763,86.784,86.74,2.6968992]
[1771291043858,10.3763,86.784,86.74,2.70574494]
[1771291044257,6.31137713,86.781,86.74,2.70574494]
[1771291045653,10.3775,86.774,86.74,2.70574494]
[1771291049055,10.3783,86.767,86.74,2.70574494]
[1771291050852,10.3783,86.767,86.735,6.31969668]
[1771291053662,6.31137713,86.806,86.735,6.31969668]
[1771291053862,6.31137713,86.806,86.76,2.70574494]
[1771291054270,10.3755,86.791,86.751,6.31969668]
[1771291054468,6.31137713,86.79,86.751,6.31969668]
[1771291055768,6.31137713,86.787,86.745,6.31969668]
[1771291055971,6.31137713,86.787,86.75,2.70574494]
[1771291056268,10.376,86.786,86.75,2.70574494]
[1771291060181,16.68737713,86.786,86.75,2.70574494]
[1771291060570,10.3766,86.781,86.75,2.70574494]
[1771291060772,6.31137713,86.797,86.76,2.70574494]
[1771291060974,6.31137713,86.797,86.721,21.29588711]
[1771291060975,6.31137713,86.797,86.75,2.70574494]
[1771291061679,16.68757713,86.785,86.75,2.70574494]
[1771291062874,6.31137713,86.781,86.74,2.70574494]
[1771291064371,5.94330282,86.779,86.74,2.70574494]
[1771291066081,16.32110282,86.771,86.73,2.70574494]
[1771291066980,5.94330282,86.77,86.73,2.70574494]
[1771291067183,5.94330282,86.768,86.725,6.08603118]
[1771291067586,5.94330282,86.768,86.72,2.70574494]
[1771291067976,5.94330282,86.768,86.721,6.08603118]
[1771291068171,5.94330282,86.768,86.73,2.70574494]
[1771291068689,10.379,86.761,86.73,2.70574494]
[1771291071678,10.379,86.761,86.721,6.08603118]
[1771291071679,6.04536736,86.758,86.721,6.08603118]
[1771291071881,6.04536736,86.758,86.72,2.70574494]
[1771291075784,6.04536736,86.747,86.709,6.09675474]
[1771291075984,6.04536736,86.779,86.711,6.09675474]
[1771291076379,6.04536736,86.779,86.72,2.70574494]
[1771291076585,6.04536736,86.771,86.73,8.80249968]
[1771291077591,10.3773,86.776,86.75,2.70574494]
[1771291077792,6.04536736,86.783,86.75,2.70574494]
[1771291078984,23.44984494,86.82,86.722,21.29588711]
[1771291078985,6.04536736,86.816,86.76,2.70574494]
[1771291079596,6.04536736,86.804,86.77,2.70574494]
[1771291079789,6.04536736,86.823,86.78,2.70574494]
[1771291080490,6.04536736,86.813,86.78,2.70574494]
[1771291080691,6.04536736,86.813,86.77,2.70574494]
[1771291081400,10.3719,86.821,86.78,2.70574494]
[1771291081695,10.3719,86.821,86.771,6.09675474]
[1771291081696,10.3719,86.821,86.79,2.70574494]
[1771291083595,6.04536736,86.818,86.79,2.70574494]
[1771291084895,6.04536736,86.818,86.78,2.70574494]
[1771291085499,6.04536736,86.816,86.78,2.70574494]
[1771291086491,10.3713,86.826,86.79,2.70574494]
[1771291086698,6.04536736,86.831,86.8,2.70574494]
[1771291087597,6.04536736,86.845,86.8,2.70574494]
[1771291087796,6.04536736,86.845,86.81,2.70574494]
[1771291088595,6.04536736,86.855,86.82,2.70574494]
[1771291092296,166.23709521,86.864,86.82,2.70574494]
[1771291093406,172.28246257,86.864,86.82,2.70574494]
[1771291094307,10.3672,86.86,86.82,2.70574494]
[1771291095006,10.3682,86.851,86.82,2.70574494]
[1771291096003,6.54448707,86.85,86.82,2.70574494]
[1771291096308,6.54448707,86.85,86.81,2.70574494]
[1771291097805,10.3672,86.86,86.811,6.16890207]
[1771291098001,6.54448707,86.863,86.821,6.16890207]
[1771291098201,6.54448707,86.889,86.83,2.70574494]
[1771291098508,6.54448707,86.889,86.774,48.64096618]
[1771291098509,6.54448707,86.887,86.841,6.16890207]
[1771291099016,10.3643,86.885,86.841,6.16890207]
[1771291099514,10.3643,86.885,86.85,2.70574494]
[1771291099717,16.90928707,86.88,86.841,6.16890207]
[1771291100007,16.90928707,86.88,86.815,72.56]
[1771291100008,6.54448707,86.879,86.82,2.70574494]
[1771291100711,6.54448707,86.873,86.83,2.70574494]
[1771291101011,6.54448707,86.873,86.831,6.16890207]
[1771291102111,6.54448707,86.891,86.85,8.87464701]
[1771291102319,6.54448707,86.92,86.871,6.16890207]
[1771291102913,6.54448707,86.92,86.87,2.70574494]
[1771291102914,6.54448707,86.899,86.84,2.70574494]
[1771291103112,6.54448707,86.889,86.837,6.16890207]
[1771291104014,6.54448707,86.889,86.84,8.86839143]
[1771291104719,10.3642,86.885,86.84,8.86839143]
[1771291104912,6.54448707,86.869,86.81,2.69948936]
[1771291105110,6.54448707,86.869,86.769,34.59]
[1771291105111,6.54448707,86.859,86.795,6.16890207]
[1771291105312,6.54448707,86.857,86.795,6.16890207]
[1771291105512,6.54448707,86.842,86.795,6.16890207]
[1771291105708,6.54448707,86.839,86.781,6.16890207]
[1771291106615,2.69948936,86.84,86.77,2.69948936]
[1771291106616,6.54448707,86.821,86.77,2.69948936]
[1771291107010,6.54448707,86.821,86.771,6.16890207]
[1771291107215,6.54448707,86.821,86.78,2.69948936]
[1771291107415,6.54448707,86.821,86.78,8.86839143]
[1771291107821,6.54448707,86.837,86.791,6.16890207]
[1771291108018,20.722,86.912,86.734,55.3543]
[1771291108019,6.54448707,86.859,86.801,6.16890207]
[1771291108816,16.91218707,86.856,86.801,6.16890207]
[1771291109016,6.54448707,86.855,86.801,6.16890207]
[1771291110015,10.3689,86.846,86.801,6.16890207]
[1771291110317,161.1894,86.903,86.78,72.56]
[1771291110318,6.54448707,86.839,86.78,2.69948936]
[1771291111718,6.54448707,86.835,86.78,2.69948936]
[1771291112113,72.56,86.854,86.791,6.16890207]
[1771291112318,6.54448707,86.853,86.801,6.16890207]
[1771291113717,6.54448707,86.846,86.79,2.69948936]
[1771291114721,6.54448707,86.84,86.79,2.69948936]
[1771291115715,10.3701,86.836,86.79,2.69948936]
[1771291118722,16.91458707,86.836,86.79,2.69948936]
[1771291120925,10.3688,86.847,86.8,6.16890207]
[1771291121130,10.3688,86.847,86.81,2.69948936]
[1771291125229,6.70892703,86.846,86.787,6.39088882]
[1771291125424,6.70892703,86.839,86.781,6.39088882]
[1771291125631,6.70892703,86.839,86.8,2.69948936]
[1771291125826,31.36095367,86.887,86.82,2.69948936]
[1771291125827,2.69948936,86.88,86.82,2.69948936]
[1771291126023,6.70892703,86.879,86.82,2.69948936]
[1771291126820,10.3673,86.86,86.82,2.69948936]
[1771291127738,10.3657,86.873,86.83,2.69948936]
[1771291127930,10.3657,86.873,86.82,6.39088882]
[1771291128233,17.07462703,86.873,86.82,6.39088882]
[1771291128731,17.07462703,86.873,86.822,6.39088882]
[1771291129326,10.3665,86.866,86.822,6.39088882]
[1771291129935,6.70892703,86.873,86.824,6.5665433]
[1771291130529,16.60640904,86.869,86.824,6.5665433]
[1771291130833,6.24030904,86.868,86.824,6.5665433]
[1771291131436,10.3673,86.859,86.815,10.3725]
[1771291131737,6.24030904,86.868,86.811,6.5665433]
[1771291132827,16.60860904,86.851,86.811,6.5665433]
[1771291133224,10.367,86.862,86.811,6.5665433]
[1771291133431,6.24030904,86.905,86.811,6.5665433]
[1771291134825,6.24030904,86.877,86.815,6.5665433]
[1771291135138,6.24030904,86.877,86.801,6.5665433]
[1771291136742,6.24030904,86.862,86.812,6.5665433]
[1771291137239,6.24030904,86.862,86.814,6.5665433]
[1771291137440,10.3668,86.863,86.814,6.5665433]
[1771291137733,16.60610904,86.872,86.814,6.5665433]
[1771291138732,16.60610904,86.872,86.826,6.5665433]
[1771291139339,10.3666,86.865,86.826,6.5665433]
[1771291140242,10.3666,86.865,86.817,10.3722]
[1771291140243,6.24030904,86.929,86.831,6.5665433]
[1771291140434,6.24030904,86.929,86.851,6.5665433]
[1771291141842,10.3606,86.915,86.865,6.5665433]
[1771291142739,16.60090904,86.915,86.865,6.5665433]
[1771291142943,16.60090904,86.915,86.858,10.3673]
[1771291142944,6.24030904,86.906,86.854,72.6]
[1771291143340,6.24030904,86.906,86.85,6.5665433]
[1771291143545,6.24030904,86.901,86.851,10.3682]
[1771291148650,6.24030904,86.901,86.851,16.9347433]
[1771291150855,6.24030904,86.901,86.852,6.5665433]
[1771291154358,16.77266823,86.9,86.852,6.5665433]
[1771291154957,6.41016823,86.89,86.85,2.69812555]
[1771291155165,6.41016823,86.889,86.839,6.42317388]
[1771291155757,16.77486823,86.881,86.84,2.69812555]
[1771291155962,10.3647,86.881,86.841,6.42317388]
[1771291156166,6.41016823,86.895,86.841,6.42317388]
[1771291157763,10.3634,86.892,86.843,6.42317388]
[1771291158366,16.77356823,86.892,86.843,6.42317388]
[1771291158560,10.3638,86.889,86.843,6.42317388]
[1771291160664,16.77396823,86.889,86.843,6.42317388]
[1771291160864,6.41016823,86.888,86.843,6.42317388]
[1771291161065,6.41016823,86.886,86.843,6.42317388]
[1771291162267,10.3629,86.896,86.846,6.42317388]
[1771291162670,16.77306823,86.896,86.846,6.42317388]
[1771291162969,10.3633,86.893,86.846,6.42317388]
[1771291164069,10.3633,86.893,86.848,6.42317388]
[1771291164273,10.3635,86.891,86.848,6.42317388]
[1771291169871,10.3623,86.901,86.849,6.42317388]
[1771291170576,16.77246823,86.901,86.849,6.42317388]
[1771291170874,16.77246823,86.901,86.854,6.42317388]
[1771291171475,16.77246823,86.901,86.857,6.42317388]
[1771291171671,10.3614,86.909,86.857,6.42317388]
[1771291171878,6.41016823,86.914,86.857,6.42317388]
[1771291172375,6.41016823,86.911,86.868,6.42317388]
[1771291173479,6.41016823,86.908,86.859,10.3672]
[1771291173670,6.41016823,86.908,86.86,6.42317388]
[1771291174272,6.41016823,86.908,86.862,16.78997388]
[1771291175175,6.41016823,86.908,86.864,10.3666]
[1771291175381,6.41016823,86.908,86.864,16.78977388]
[1771291177175,6.41016823,86.906,86.864,16.78977388]
[1771291187087,6.41016823,86.906,86.864,6.42317388]
[1771291190489,6.41016823,86.906,86.867,6.52684277]
[1771291191288,6.41016823,86.906,86.868,10.3662]
[1771291198494,6.37059891,86.904,86.867,6.52684277]
[1771291198687,6.37059891,86.929,86.867,6.52684277]
[1771291198893,6.37059891,86.929,86.881,6.52684277]
[1771291199082,6.37059891,86.929,86.891,6.52684277]
[1771291200294,6.37059891,86.929,86.881,6.52684277]
[1771291200784,6.37059891,86.927,86.881,6.52684277]
[1771291201787,6.37059891,86.927,86.89,2.69771011]
[1771291201988,10.3583,86.935,86.891,6.52684277]
[1771291202193,10.3583,86.935,86.9,9.22455288]
[1771291202593,10.3583,86.935,86.89,2.69771011]
[1771291202796,6.37059891,86.932,86.89,2.69771011]
[1771291207304,6.37059891,86.942,86.893,6.52684277]
[1771291207505,6.37059891,86.942,86.901,6.52684277]
[1771291211603,10.3563,86.951,86.901,6.52684277]
[1771291211998,181.17600846,86.948,86.901,6.52684277]
[1771291212397,6.37059891,86.947,86.901,6.52684277]
[1771291216308,6.77587621,86.945,86.901,6.52684277]
[1771291217602,6.77587621,86.943,86.89,6.22496086]
[1771291217913,6.77587621,86.943,86.89,8.92267097]
[1771291218210,6.77587621,86.921,86.878,6.22496086]
[1771291218414,6.77587621,86.921,86.87,8.92267097]
[1771291219505,10.36,86.92,86.871,10.3657]
[1771291219707,6.77587621,86.919,86.871,10.3657]
[1771291220110,6.77587621,86.916,86.87,8.92267097]
[1771291220320,6.77587621,86.916,86.87,6.22496086]
[1771291221414,6.77587621,86.914,86.863,14.05096618]
[1771291221615,6.77587621,86.914,86.858,6.22496086]
[1771291221616,6.77587621,86.914,86.859,6.22496086]
[1771291221820,6.77587621,86.909,86.859,6.22496086]
[1771291222212,6.77587621,86.909,86.86,2.69771011]
[1771291222716,6.77587621,86.904,86.86,2.69771011]
[1771291222917,2.69771011,86.95,86.891,6.22496086]
[1771291223112,14.34900566,86.984,86.891,6.22496086]
[1771291223113,2.69771011,86.94,86.891,6.22496086]
[1771291223416,2.69771011,86.94,86.882,10.3645]
[1771291223417,6.77587621,86.936,86.882,10.3645]
[1771291225623,6.77587621,86.936,86.882,16.58946086]
[1771291226624,6.77587621,86.936,86.883,6.22496086]
[1771291228625,6.77587621,86.936,86.886,6.22496086]
[1771291230323,6.77587621,86.934,86.886,6.22496086]
[1771291230725,6.77587621,86.932,86.886,6.22496086]
[1771291232325,6.77587621,86.932,86.887,10.3639]
[1771291232723,6.77587621,86.932,86.887,16.58886086]
[1771291232925,6.77587621,86.932,86.888,6.22496086]
[1771291235931,6.77587621,86.93,86.888,6.22496086]
[1771291236435,2.69638002,86.94,86.888,6.22496086]
[1771291236436,6.77587621,86.922,86.888,6.22496086]
[1771291236833,10.3599,86.921,86.87,2.69638002]
[1771291237033,6.77587621,86.92,86.871,6.22496086]
[1771291237541,6.77587621,86.913,86.871,6.22496086]
[1771291238733,6.77587621,86.911,86.871,6.22496086]
[1771291239935,6.77587621,86.95,86.881,6.22496086]
[1771291240132,6.77587621,86.95,86.855,21.29588711]
[1771291240133,6.77587621,86.949,86.891,6.22496086]
[1771291240330,72.5,86.973,86.89,14.05096618]
[1771291240331,6.77587621,86.939,86.89,14.05096618]
[1771291240532,6.77587621,86.939,86.881,6.22496086]
[1771291240933,6.77587621,86.929,86.884,6.22496086]
[1771291241137,6.77587621,86.929,86.872,14.05096618]
[1771291241437,2.69638002,86.93,86.871,6.22496086]
[1771291241438,6.77587621,86.919,86.871,6.22496086]
[1771291241936,10.3606,86.915,86.871,16.59076086]
[1771291242140,10.3606,86.915,86.872,6.22496086]
[1771291245644,6.77587621,86.919,86.876,6.56145047]
[1771291245839,6.77587621,86.919,86.881,6.56145047]
[1771291246040,10.3595,86.925,86.881,6.56145047]
[1771291246743,10.3595,86.925,86.882,6.56145047]
[1771291248247,6.4667094,86.922,86.877,14.05096618]
[1771291248540,6.4667094,86.909,86.857,6.56145047]
[1771291248744,6.4667094,86.899,86.856,14.05096618]
[1771291249142,6.31970859,86.912,86.861,6.10049901]
[1771291249641,10.3612,86.91,86.861,6.10049901]
[1771291250043,16.68090859,86.91,86.861,6.10049901]
[1771291250436,10.3616,86.907,86.861,6.10049901]
[1771291253342,16.68130859,86.907,86.861,6.10049901]
[1771291254247,6.31970859,86.906,86.861,6.10049901]
[1771291263157,10.3619,86.904,86.861,6.10049901]
[1771291263359,6.31970859,86.903,86.861,78.62049901]
[1771291263556,6.31970859,86.903,86.845,21.29588711]
[1771291263557,6.31970859,86.899,86.84,2.69638002]
[1771291263858,6.31970859,86.899,86.843,72.52]
[1771291264060,6.31970859,86.899,86.844,6.10049901]
[1771291264760,10.364,86.887,86.844,6.10049901]
[1771291270461,10.3629,86.896,86.851,6.10049901]
[1771291270859,10.3629,86.896,86.853,6.10049901]
[1771291271062,16.68260859,86.896,86.853,6.10049901]
[1771291271252,6.31970859,86.895,86.853,6.10049901]
[1771291271656,2.69638002,86.91,86.852,74.04]
[1771291271657,6.31970859,86.892,86.852,74.04]
[1771291272655,16.68410859,86.884,86.852,74.04]
[1771291272966,6.31970859,86.883,86.852,74.04]
[1771291278072,6.31970859,86.883,86.852,80.28762817]
[1771291279169,10.3642,86.885,86.853,6.24762817]
[1771291279362,6.09551522,86.894,86.853,6.24762817]
[1771291283264,6.09551522,86.891,86.854,77.62]
[1771291283673,6.09551522,86.891,86.855,6.24762817]
[1771291285973,6.09551522,86.889,86.855,6.24762817]
[1771291286167,6.09551522,86.889,86.854,77.62]
[1771291287671,10.364,86.887,86.854,77.62]
[1771291291970,10.364,86.887,86.855,6.24762817]
[1771291296384,10.3648,86.88,86.855,6.24762817]
[1771291300174,6.09551522,86.875,86.854,77.62]
[1771291300376,6.09551522,86.875,86.823,26.57638814]
[1771291300580,6.09551522,86.875,86.824,72.52]
[1771291301085,10.367,86.862,86.824,72.52]
[1771291301288,10.367,86.862,86.824,99.09846108]
[1771291302780,10.367,86.862,86.825,26.50269831]
[1771291310405,10.367,86.862,86.83,2.69888736]
[1771291310610,10.367,86.862,86.831,26.46169217]
[1771291311106,10.3655,86.875,86.841,26.46312706]
[1771291311905,10.3645,86.883,86.851,26.46442836]
[1771291312613,2.69888736,86.91,86.851,26.46442836]
[1771291312614,10.3635,86.891,86.851,26.46442836]
[1771291315811,10.3635,86.891,86.861,26.45383225]
[1771291316515,72.54,86.929,86.871,26.45537738]
[1771291317316,14.34900566,86.953,86.862,83.9]
[1771291317317,10.3604,86.917,86.881,26.45668641]
[1771291318711,10.73397291,86.967,86.91,2.69888736]
[1771291318908,2.69888736,86.96,86.906,26.45477186]
[1771291319107,2.69888736,86.95,86.895,26.45477186]
[1771291319316,10.3585,86.933,86.895,26.45477186]
[1771291320008,10.3585,86.933,86.9,2.69888736]
[1771291320608,10.3585,86.933,86.9,29.13537907]
[1771291320818,2.69888736,86.97,86.911,26.43767862]
[1771291321010,75.21888736,86.97,86.911,26.43767862]
[1771291321405,2.69888736,86.98,86.921,26.43767862]
[1771291321916,10.3543,86.968,86.921,26.43767862]
[1771291322417,10.3543,86.968,86.93,2.69888736]
[1771291322618,10.3543,86.968,86.931,26.43974241]
[1771291326518,2.69888736,86.98,86.931,26.43974241]
[1771291326519,10.3532,86.978,86.931,26.43974241]
[1771291328309,10.3542,86.969,86.931,26.43974241]
[1771291330617,10.73397291,87.042,86.931,26.43974241]
[1771291330820,2.69888736,87.0,86.941,21.32490639]
[1771291331817,10.3514,86.993,86.951,21.3179109]
[1771291332220,2.69888736,86.99,86.935,21.3179109]
[1771291332417,2.69888736,86.99,86.851,28.54215024]
[1771291332418,2.69888736,86.98,86.921,21.3179109]
[1771291333324,20.6963,87.02,86.931,21.3193437]
[1771291333520,2.69888736,87.0,86.941,21.3193437]
[1771291334119,75.17888736,87.0,86.941,21.3193437]
[1771291334826,10.3514,86.993,86.941,21.3193437]
[1771291336328,10.3523,86.985,86.941,21.3193437]
[1771291338727,10.3513,86.994,86.942,21.35404765]
[1771291338931,75.17888736,87.0,86.942,21.35404765]
[1771291340325,2.69888736,86.99,86.942,21.35404765]
[1771291340732,2.69888736,87.0,86.942,21.35404765]
[1771291340931,72.46,86.999,86.942,21.35404765]
[1771291341930,10.3511,86.995,86.942,21.35404765]
[1771291342531,10.353,86.98,86.942,21.35404765]
[1771291352443,72.46,86.985,86.942,21.35404765]
[1771291355742,10.3526,86.983,86.942,21.35404765]
[1771291356942,10.3529,86.98,86.942,21.35404765]
[1771291358445,10.3538,86.973,86.942,21.35404765]
[1771291360956,10.3527,86.981,86.942,21.35404765]
[1771291361146,2.69336909,87.0,86.942,21.35404765]
[1771291361340,72.46,86.999,86.942,21.35404765]
[1771291362751,10.3519,86.989,86.942,21.35404765]
[1771291364953,10.3528,86.981,86.942,21.35404765]
[1771291365148,2.69336909,86.98,86.942,21.35404765]
[1771291366549,10.3526,86.983,86.942,21.35404765]
[1771291366744,2.69336909,86.99,86.942,21.35404765]
[1771291367056,2.69336909,86.98,86.942,21.35404765]
[1771291367258,10.3535,86.975,86.942,21.35404765]
[1771291368253,10.3522,86.986,86.942,21.35404765]
[1771291373159,10.3522,86.986,86.942,35.40501383]
[1771291373358,10.3522,86.986,86.944,21.29911581]
[1771291375262,10.3522,86.986,86.945,21.29069844]
[1771291375662,10.3512,86.995,86.947,21.29069844]
[1771291375962,10.3512,86.995,86.95,21.38087854]
[1771291376960,72.46,86.999,86.961,21.38172778]
[1771291377150,2.69336909,87.02,86.961,21.38172778]
[1771291377356,72.46,87.015,86.961,21.38172778]
[1771291378658,82.8088,87.015,86.97,21.37684836]
[1771291378861,72.46,87.015,86.97,21.37684836]
[1771291379763,10.3496,87.008,86.97,21.37684836]
[1771291380360,2.69336909,87.01,86.97,21.37684836]
[1771291380563,72.44,87.016,86.97,21.37684836]
[1771291382065,2.69336909,87.0,86.97,21.37684836]
[1771291383665,10.3506,86.999,86.97,21.37684836]
[1771291383968,2.69336909,86.98,86.943,21.49656281]
[1771291384464,72.44,86.987,86.943,21.49656281]
[1771291384768,10.3535,86.975,86.943,21.49656281]
[1771291384966,2.69336909,86.97,86.931,21.4974676]
[1771291385266,2.69336909,86.95,86.903,14.05096618]
[1771291385467,2.69336909,86.95,86.904,21.4974676]
[1771291386572,72.44,86.956,86.904,21.4974676]
[1771291386769,82.7958,86.956,86.904,21.4974676]
[1771291386967,2.69336909,86.94,86.891,21.43799155]
[1771291387168,72.44,86.939,86.891,21.43799155]
[1771291387870,2.69336909,86.93,86.891,21.43799155]
[1771291388370,82.7978,86.939,86.891,21.43799155]
[1771291389375,82.8178,86.939,86.891,21.43799155]
[1771291389975,10.3578,86.939,86.891,21.43799155]
[1771291391473,72.46,86.938,86.891,21.43799155]
[1771291392281,10.3582,86.936,86.891,21.43799155]
[1771291392674,2.69336909,86.98,86.911,21.29803469]
[1771291392882,72.46,86.979,86.911,21.29803469]
[1771291393380,72.46,86.978,86.911,21.29803469]
[1771291393886,10.3563,86.951,86.911,21.29803469]
[1771291396881,2.69336909,86.96,86.9,2.69336909]
[1771291397079,72.48,86.959,86.9,2.69336909]
[1771291397587,72.48,86.959,86.9,23.98513067]
[1771291398180,10.3573,86.943,86.9,23.98513067]
[1771291398378,72.48,86.942,86.9,23.98513067]
[1771291399381,10.3573,86.943,86.911,21.29259208]
[1771291399585,72.48,86.944,86.911,21.29259208]
[1771291399775,10.3563,86.952,86.911,21.29259208]
[1771291400490,10.3569,86.947,86.911,21.29259208]
[1771291402984,10.3578,86.939,86.9,2.69336909]
[1771291403596,10.3578,86.939,86.9,23.97851717]
[1771291406488,72.48,86.947,86.9,23.97851717]
[1771291406686,72.48,86.947,86.91,23.97839454]
[1771291407296,72.48,86.954,86.91,23.97839454]
[1771291407698,10.3571,86.945,86.91,23.97839454]
[1771291409998,10.3571,86.945,86.91,23.97991223]
[1771291410596,10.3559,86.955,86.921,21.28604739]
[1771291415307,10.3567,86.948,86.911,21.23607259]
[1771291418006,10.3557,86.957,86.911,21.23607259]
[1771291419010,10.3557,86.957,86.921,21.25040892]
[1771291419609,10.64714947,87.003,86.92,2.69488678]
[1771291419610,10.3539,86.971,86.94,2.69488678]
[1771291419820,10.3539,86.971,86.95,2.69488678]
[1771291420011,72.48,86.998,86.95,2.69488678]
[1771291421419,72.48,86.998,86.95,23.94752223]
[1771291421812,10.3527,86.981,86.95,23.94752223]
[1771291423316,10.3527,86.981,86.95,21.25263545]
[1771291424009,72.48,86.998,86.95,21.25263545]
[1771291424215,72.48,86.997,86.95,21.25263545]
[1771291424516,2.69488678,87.01,86.95,21.25263545]
[1771291424517,72.48,86.996,86.95,21.25263545]
[1771291425322,2.69488678,87.01,86.95,21.25263545]
[1771291425522,72.48,87.009,86.95,21.25263545]
[1771291425822,10.3528,86.981,86.938,21.20874955]
[1771291426018,2.69488678,87.0,86.938,21.20874955]
[1771291426218,72.48,86.999,86.938,21.20874955]
[1771291428616,10.3546,86.966,86.938,21.20874955]
[1771291428925,72.46,86.976,86.926,21.24529357]
[1771291429120,72.46,86.975,86.926,21.24529357]
[1771291430820,10.3551,86.961,86.926,21.24529357]
[1771291431723,10.3551,86.961,86.93,2.69488678]
[1771291434424,10.3551,86.961,86.93,23.93408236]
[1771291436631,10.3541,86.97,86.93,23.93408236]
[1771291438527,10.3541,86.97,86.941,21.24888916]
[1771291439835,10.3527,86.981,86.951,21.24114497]
[1771291442233,10.64714947,87.029,86.971,21.23563467]